Workbook

Sheet Vejledning
C3: Vejledning til energisyn
C4: Retningslinjer for korrekt indberetning
C6: Generelt for alle faner
C7: Det er vigtigt at alle felter udfyldes, og at nye celler og ikke-anmodede oplysninger ikke indføres. - De felter, der kan udfyldes, er markeret med grøn - Visse celler udfyldes automatisk. Dette er oftest vist ved at cellen indeholder en bindestreg.
C12: Basisoplysninger
C13: Her indføres oplysninger om virksomheden og energisynskonsulent. - Angiv den dato, energisynet er udført
C17: Nuværende energiforbrug
C18: Her oplyses energiforbruget for det indeværende år. - Udfyld ét skema pr. P-nummer. Husk at angive p-nummer i skemaet - Hvis virksomhederne har flere end 5 enheder/P-numre, skal det samlede energiforbrug angives. - Brug de listede omregningsfaktorer
C23: Potentielle besparelser og gennemførte besparelser
C24: I denne fane, gives der et overblik over virksomhedens projekter. - Vær opmærksom på, at energi skal opgives i MWh.
C28: Der kan løbende komme justeringer til indberetningskemaet, brugere opfordres til altid at hente skemaet på www.ens.dk
C30: Har du spørgsmål til udfyldelse af blanketten, er du velkommen til at kontakte Energistyrelsen på energisyn@ens.dk eller på tlf. +45 33926688.

Sheet Definitioner
B2: Definitioner
B4: Olieprodukter
B5: LPG | C5: Liquefied Petroleum Gas (flydende gas, flaskegas). Betegnelsen for propan, butan og blandinger heraf. Anvendes i industri samt til opvarmning, madlavning og som drivmiddel.
B6: Motorbenzin
B7: Diesel | C7: Omfatter også petroleum
B8: Fyringsolie
B9: Fuelolie | C9: Omfatter også spildolie
B10: Petroleums-koks | C10: Et fast olieprodukt, som fremkommer ved raffinering af fuelolie i en såkaldt coker. Omkring 10% af materialet afsætter sig i cokeren som petroleumskoks.
B11: Gas
B12: Naturgas mv.
B13: Kul og Koks
B14: Kul og Koks | C14: Kul og koks slås sammen
B15: Affald
B16: Affald, ikke-bionedbrydeligt
B17: Vedvarende energi
B18: Affald, bionedbrydeligt
B19: Halm
B20: Skovflis
B21: Træpiller
B22: Træaffald og brænde
B23: Biogas
B24: Bioolie
B25: Varmepumper – overskudsvarme | C25: Udnyttelse af overskudsvarme i varmepumper.
B26: Varmepumper - omgivelsesvarme | C26: Energimængden produceret af varmepumper beregnes som forskellen mellem den mængde energi, som varmepumpen leverer og varmepumpens elforbrug.
B27: Solvarme
B28: Konverterede energiarter
B29: El
B30: Fjernvarme
B32: Intern energiforsyning
B33: Konverterings- og nettab | C33: Forskellen på det samlede input og output i konverteringsprocessen.
B34: Procesvarme
B35: Opvarmning/kogning | C35: Inklusiv pasteurisering, blanchering, ekstraktion, sterilisering, rengøringsvand til produktionsanlæg, vask af råvarer, varmeholdelse af tanke og rør.
B36: Tørring | C36: Inklusiv bagning og tørring af/hærdning af lak
B37: Inddampning
B38: Destillation | C38: Inklusiv deorisering
B39: Brænding/Sintring
B40: Smeltning/støbning | C40: Inklusiv varmeholdelse af smeltede materialer, plaststøbemaskiner, og varmelegemer i ekstrudere
B41: Anden procesvarme | C41: Inklusiv hærdning af stål, hærdning af betonelementer, afspændingsovne, svideovne
B42: Transport
B43: Arbejdskørsel, intern transport
B44: Vejtransport (offentlig vej) | C44: Al transportaktivitet bortset fra intern transport på virksomhedsarealer.
B45: Rumvarme mv.
B46: Rumvarme | C46: Inklusiv varmt vand til lokalrengøring og komfortformål, men eksklusiv rumvarme i særlige rum med driftstemperaturer på mindst 45 grader samt i rum til lagring af oste, spegepølser mm.
B47: Rumkøling | C47: For rumkøling menes komfortkøling hvor der betales speciel afgift.
B48: Sekundær energi
B49: Belysning
B50: Pumpning
B51: Køl/frys (eksklusiv rumkøling)
B52: Rumventilation
B53: Blæsere
B54: Trykluft
B55: Hydraulik
B56: Øvrige elmotorer | C56: Inklusiv centrifugering, presning og intern eldrevet transport
B57: IT og anden elektronik
B58: Anden elanvendelse | C58: Inklusiv svejsning og elektrolyse

Sheet Branchekoder
B2: Branchekode | C2: Tilhørende bogstavskode
B3: 1 til 3 | C3: A - Landbrug, jagt, skovbrug og fiskeri
B4: 5 til 9 | C4: B - Råstofindvinding
B5: 10 til 33 | C5: C - Fremstillingsvirksomhed
B6: 35 | C6: D - El-, gas- og fjernvarmeforsyning
B7: 36 til 39 | C7: E - Vandforsyning; kloakvæsen, affaldshåndtering og rensning af jord og grundvand
B8: 41 til 43 | C8: F - Bygge- og anlægsvirksomhed
B9: 45 til 47 | C9: G - Engroshandel og detailhandel, reparation af motorkøretøjer og motorcykler
B10: 49 til 53 | C10: H - Transport og godshåndtering
B11: 55 til 56 | C11: I - Overnatningsfaciliteter og restaurationsvirksomhed
B12: 58 til 63 | C12: J - Information og kommunikation - 580000 - 639900
B13: 64 til 66 | C13: K - Pengeinstitut- og finansvirksomhed, forsikring - 640000 - 663000
B14: 68 | C14: L - Fast ejendom
B15: 69 til 75 | C15: M - Liberale, videnskabelige og tekniske tjenesteydelser - 690000 - 750000
B16: 77 til 82 | C16: N - Administrative tjenesteydelser og hjælpetjenester - 750000 - 829900
B17: 84 | C17: O - Offentlig forvaltning og forsvar; socialsikring
B18: 85 | C18: P - Undervisning
B19: 86 til 88 | C19: Q - Sundhedsvæsen og sociale foranstaltninger
B20: 90 til 93 | C20: R - Kultur, forlystelser og sport - 900000 - 932990
B21: 94 til 96 | C21: S - Andre serviceydelser
B22: 97 til 98 | C22: T - Private husholdninger med ansat medhjælp; husholdnin-gers produktion af varer og tjenesteydelser til eget brug, i.a.n.
B23: 99 | C23: U - Ekstraterritoriale organisationer og organer

Sheet Basisoplysninger
B1: Stamdata
B2: CVR | D2: Branchekode | F2: Region | H2: Energisynskonsulent | K2: Kontaktperson i virksomheden | M2: Dato for udførelse (DD-MM-ÅÅÅÅ)
P3: Energiforbrug [MWh]
B4: Tilknyttede CVR | D4: Branchekode | F4: Region | H4: E-mail | K4: E-mail | O4: Fuldt energiforbrug
O5: Indberettet energiforbrug
I7: Godkendt i Registreringsordningen
I8: Energikonsulent, flerfamiliehuse
I9: Akkrediteret af DANAK mv.
I10: Godkendt som intern konsulent
I11: Godkendt udenlandsk konsulent
I12: (sæt kryds)

Sheet Nuværende energiforbrug
A2: Energiforbrug
A3: Totalt energiforbrug de seneste 12 måneder
D4: Måleperiode for indtastet energiforbrug:
A5: Nr. P-enhed: | B5: 1 | D5: Startdato: | F5: Slutdato:
AD6: Omregningstabel til CO2 forbrug
A7: Nr. P-enhed: | B7: 1 | C7: I alt | D7: OLIEPRODUKTER | J7: GAS | K7: KUL-KOKS | L7: AFFALD | M7: VEDVARENDE ENERGI | W7: KONVERTEREDE ENERGIARTER | Z7: TEMPERATUR, ANDEL AF TOTAL PROCESVARMEFORBRUG | AD7: Energiart | AE7: ton CO2 pr. MWh
A8: Nr. P-enhed: | B8: <Indtast P-nummer> | C8: MWh | D8: LPG | E8: Motor-benzin | F8: Fyrings-olie | G8: Diesel | H8: Fuelolie | I8: Petro-koks | J8: Lednings-gas | K8: Kul og koks | L8: Affald, ikke-bionedbrydeligt | M8: Affald, bionedbrydeligt | N8: Halm | O8: Skovflis | P8: Træpiller | Q8: Træaffald og brænde | R8: Biogas | S8: Bioolie | T8: Varme-pumper - intern ov | U8: Varme-pumper omg. Varme | V8: Solvarme | W8: El i alt | X8: heraf el til varme-pumper | Y8: Fjern-varme | Z8: <100oC | AA8: 100-200oC | AB8: >200oC | AD8: Affald, bionedbrydeligt | AE8: 0.387504
A9: Intern energiforsyning | B9: Konverterings- og nettab | C9: =SUM(D9:Y9) -> 0 | AD9: Affald, ikke bionedbrydeligt | AE9: 0.339984
A10: Procesvarme | B10: Opvarmning/kogning | C10: =SUM(D10:Y10) -> 0 | AD10: Benzin og LVN | AE10: 0.2628
B11: Tørring | C11: =SUM(D11:Y11) -> 0 | AD11: Biodiesel | AE11: 0.27972
B12: Inddampning | C12: 0 | AD12: Bioethanol | AE12: 0.2592
B13: Destillation | C13: 0 | AD13: Biogas | AE13: 0.29484
B14: Brænding/sintring | C14: 0 | AD14: Bionaturgas | AE14: 0.19764
B15: Smeltning/støbning | C15: 0 | AD15: Bioolie | AE15: 0.25488
B16: Anden procesvarme* | C16: 0 | AD16: Elektricitet (forbrug) | AE16: 0.0361
A17: Transport | B17: Arbejdskørsel | C17: 0 | AD17: Elektricitet (produktion) | AE17: 0.0361
B18: Vejtransport (offentlig vej) | C18: 0 | AD18: Fjernvarme (forbrug) | AE18: 0.05416
A19: Rumvarme mv. | B19: Rumvarme | C19: 0 | AD19: Fjernvarme (produktion) | AE19: 0.0433
B20: Rumkøling | C20: 0 | AD20: Fuelolie og Spildolie | AE20: 0.28242
A21: Sekundær energi | B21: Belysning | C21: 0 | AD21: Gas & Dieselolie | AE21: 0.26676
B22: Pumpning | C22: 0 | AD22: Halm | AE22: 0.36
B23: Køl/frys (ekskl. rumkøling) | C23: 0 | AD23: JP1 og JP4 | AE23: 0.2592
B24: Rumventilation | C24: 0 | AD24: Kul & Koks | AE24: 0.339444
B25: Blæsere | C25: 0 | AD25: Ledningsgas | AE25: 0.123372
B26: Trykluft | C26: 0 | AD26: LPG | AE26: 0.23328
B27: Hydraulik | C27: 0 | AD27: Naturgas | AE27: 0.20394
B28: Øvrige elmotorer | C28: 0 | AD28: Petrokoks | AE28: 0.3348
B29: It og anden elektronik | C29: 0 | AD29: Petroleum | AE29: 0.25884
B30: Anden elanvendelse* | C30: 0 | AD30: Raffinaderigas | AE30: 0.204012
A31: Produktion | B31: Produktion af el | C31: =SUM(D31:Y31) -> 0 | AD31: Træ Øvrig | AE31: 0.37224
AD32: Træflis | AE32: 0.37224
AD33: Træpiller | AE33: 0.35064
AD34: Vægtede CO2 emissionsfaktorer KF23
AD35: KF23 national energibalance
AD36: El-emissionsfaktor

Sheet Besparelsesprojekter
B1: Mulige projekter
B2: Indskriv kun de 15 mest rentable besparelsesprojekter
N3: Udregnes automatisk
C4: Projektinformation | H4: Besparelse/år | N4: Tilbage- betalingstid | O4: Besparelse i levetiden | P4: Reduktion
C5: Betegnelse | D5: Anvendelsesområde | E5: Underområde | F5: Levetid [år] | G5: Invest. [kr] | H5: Energiart | I5: Besparelse af energiart [MWh] | J5: Besparelse [kr] | K5: Forhøjet el-forbrug [MWh] | L5: Øvrige driftsbesparelser [kr] | N5: År | O5: DKK (1000 kr) | P5: TCO2e/år
B6: 1 | C6: [Fritekst] | N6: =IF(OR(G6="",J6=""),"-",G6/(J6+L6)) -> - | O6: =IF(OR(F6="",J6=""),"-",F6*(J6+L6)*0.001) -> - | P6: =IFERROR(IF(OR(I6="",H6=""),"-",I6*VLOOKUP(H6,Hjælpedata!$P$3:$Q$27,2)),"-") -> -
B7: =B6+1 -> 2 | N7: =IF(OR(G7="",J7=""),"-",G7/(J7+L7)) -> - | O7: =IF(OR(F7="",J7=""),"-",F7*(J7+L7)*0.001) -> - | P7: =IFERROR(IF(OR(I7="",H7=""),"-",I7*VLOOKUP(H7,Hjælpedata!$P$3:$Q$27,2)),"-") -> -
B8: =B7+1 -> 3 | N8: =IF(OR(G8="",J8=""),"-",G8/(J8+L8)) -> - | O8: - | P8: =IFERROR(IF(OR(I8="",H8=""),"-",I8*VLOOKUP(H8,Hjælpedata!$P$3:$Q$27,2)),"-") -> -
B9: 4 | N9: - | O9: - | P9: =IFERROR(IF(OR(I9="",H9=""),"-",I9*VLOOKUP(H9,Hjælpedata!$P$3:$Q$27,2)),"-") -> -
B10: 5 | N10: - | O10: - | P10: =IFERROR(IF(OR(I10="",H10=""),"-",I10*VLOOKUP(H10,Hjælpedata!$P$3:$Q$27,2)),"-") -> -
B11: 6 | N11: - | O11: - | P11: =IFERROR(IF(OR(I11="",H11=""),"-",I11*VLOOKUP(H11,Hjælpedata!$P$3:$Q$27,2)),"-") -> -
B12: 7 | N12: - | O12: - | P12: =IFERROR(IF(OR(I12="",H12=""),"-",I12*VLOOKUP(H12,Hjælpedata!$P$3:$Q$27,2)),"-") -> -
B13: 8 | N13: - | O13: - | P13: =IFERROR(IF(OR(I13="",H13=""),"-",I13*VLOOKUP(H13,Hjælpedata!$P$3:$Q$27,2)),"-") -> -
B14: 9 | N14: - | O14: - | P14: =IFERROR(IF(OR(I14="",H14=""),"-",I14*VLOOKUP(H14,Hjælpedata!$P$3:$Q$27,2)),"-") -> -
B15: 10 | N15: - | O15: - | P15: =IFERROR(IF(OR(I15="",H15=""),"-",I15*VLOOKUP(H15,Hjælpedata!$P$3:$Q$27,2)),"-") -> -
B16: 11 | N16: - | O16: - | P16: =IFERROR(IF(OR(I16="",H16=""),"-",I16*VLOOKUP(H16,Hjælpedata!$P$3:$Q$27,2)),"-") -> -
B17: 12 | N17: - | O17: - | P17: =IFERROR(IF(OR(I17="",H17=""),"-",I17*VLOOKUP(H17,Hjælpedata!$P$3:$Q$27,2)),"-") -> -
B18: 13 | N18: - | O18: - | P18: =IFERROR(IF(OR(I18="",H18=""),"-",I18*VLOOKUP(H18,Hjælpedata!$P$3:$Q$27,2)),"-") -> -
B19: 14 | N19: - | O19: - | P19: =IFERROR(IF(OR(I19="",H19=""),"-",I19*VLOOKUP(H19,Hjælpedata!$P$3:$Q$27,2)),"-") -> -
B20: 15 | N20: - | O20: - | P20: =IFERROR(IF(OR(I20="",H20=""),"-",I20*VLOOKUP(H20,Hjælpedata!$P$3:$Q$27,2)),"-") -> -
B23: Gennemførte projekter siden sidste energisyn
C25: Projektinformation | H25: Besparelse/år | N25: Tilbage- betalingstid | O25: Besparelse i levetiden | P25: Reduktion
C26: Betegnelse | D26: Anvendelsesområde | E26: Underområde | F26: Levetid [år] | G26: Invest. [kr] | H26: Energiart | I26: Besparelse af energiart [MWh] | J26: Besparelse [kr] | L26: Øvrige driftsbesparelser [kr] | N26: År | O26: DKK (1000 kr) | P26: TCO2e/år
B27: 1 | C27: [Fritekst] | N27: =IF(OR(G27="",J27=""),"-",G27/(J27+L27)) -> - | O27: =IF(OR(F27="",J27=""),"-",F27*(J27+L27)*0.001) -> - | P27: =IFERROR(IF(OR(I27="",H27=""),"-",I27*VLOOKUP(H27,Hjælpedata!$P$3:$Q$27,2)*0.001),"-") -> -
B28: =B27+1 -> 2 | N28: =IF(OR(G28="",J28=""),"-",G28/(J28+L28)) -> - | O28: =IF(OR(F28="",J28=""),"-",F28*(J28+L28)*0.001) -> - | P28: =IFERROR(IF(OR(I28="",H28=""),"-",I28*VLOOKUP(H28,Hjælpedata!$P$3:$Q$27,2)*0.001),"-") -> -
B29: =B28+1 -> 3 | N29: =IF(OR(G29="",J29=""),"-",G29/(J29+L29)) -> - | O29: - | P29: =IFERROR(IF(OR(I29="",H29=""),"-",I29*VLOOKUP(H29,Hjælpedata!$P$3:$Q$27,2)*0.001),"-") -> -
B30: 4 | N30: - | O30: =IF(OR(F30="",J30=""),"-",F30*(J30+L30)*0.001) -> - | P30: =IFERROR(IF(OR(I30="",H30=""),"-",I30*VLOOKUP(H30,Hjælpedata!$P$3:$Q$27,2)*0.001),"-") -> -
B31: 5 | N31: - | O31: - | P31: =IFERROR(IF(OR(I31="",H31=""),"-",I31*VLOOKUP(H31,Hjælpedata!$P$3:$Q$27,2)*0.001),"-") -> -
B32: 6 | N32: - | O32: - | P32: =IFERROR(IF(OR(I32="",H32=""),"-",I32*VLOOKUP(H32,Hjælpedata!$P$3:$Q$27,2)*0.001),"-") -> -
B33: 7 | N33: - | O33: - | P33: =IFERROR(IF(OR(I33="",H33=""),"-",I33*VLOOKUP(H33,Hjælpedata!$P$3:$Q$27,2)*0.001),"-") -> -
B34: 8 | N34: - | O34: - | P34: =IFERROR(IF(OR(I34="",H34=""),"-",I34*VLOOKUP(H34,Hjælpedata!$P$3:$Q$27,2)*0.001),"-") -> -
B35: 9 | N35: - | O35: - | P35: =IFERROR(IF(OR(I35="",H35=""),"-",I35*VLOOKUP(H35,Hjælpedata!$P$3:$Q$27,2)*0.001),"-") -> -
B36: 10 | N36: - | O36: - | P36: =IFERROR(IF(OR(I36="",H36=""),"-",I36*VLOOKUP(H36,Hjælpedata!$P$3:$Q$27,2)*0.001),"-") -> -
B37: 11 | N37: - | O37: - | P37: =IFERROR(IF(OR(I37="",H37=""),"-",I37*VLOOKUP(H37,Hjælpedata!$P$3:$Q$27,2)*0.001),"-") -> -
B38: 12 | N38: - | O38: - | P38: =IFERROR(IF(OR(I38="",H38=""),"-",I38*VLOOKUP(H38,Hjælpedata!$P$3:$Q$27,2)*0.001),"-") -> -
B39: 13 | N39: - | O39: - | P39: =IFERROR(IF(OR(I39="",H39=""),"-",I39*VLOOKUP(H39,Hjælpedata!$P$3:$Q$27,2)*0.001),"-") -> -
B40: 14 | N40: - | O40: - | P40: =IFERROR(IF(OR(I40="",H40=""),"-",I40*VLOOKUP(H40,Hjælpedata!$P$3:$Q$27,2)*0.001),"-") -> -
B41: 15 | N41: - | O41: - | P41: =IFERROR(IF(OR(I41="",H41=""),"-",I41*VLOOKUP(H41,Hjælpedata!$P$3:$Q$27,2)*0.001),"-") -> -

Sheet Hjælpedata (hidden)
P1: Omregningsfaktorer
A2: Anvendelseområder | C2: Underområder | P2: Energiart | Q2: ton CO2 pr. MWh | R2: Column1 | T2: Uledning TJ
A3: Anvendelsesområde | C3: Intern energiforsyning | D3: Procesvarme | E3: Transport | F3: Rumvarme | G3: Sekundær energi | J3: Omregningsfaktorer | L3: Region | M3: Branchekoder | N3: VBA til P-enhed | P3: Affald, bionedbrydeligt | Q3: 0.387504 | R3: =Tabel2[[#This Row],[ton CO2 pr. MWh]]*277.77777 -> 107.639997 | T3: Column1 | U3: TJ/MWh | V3: Column3
A4: Intern energiforsyning | C4: Konverterings- og nettab | D4: Opvarmning/kogning | E4: Arbejdskørsel | F4: Rumvarme | G4: Belysning | J4: Affald, bionedbrydeligt | L4: Nordjylland | M4: A - Landbrug, jagt, skovbrug og fiskeri | N4: 1 | P4: Affald, ikke bionedbrydeligt | Q4: 0.339984 | R4: =Tabel2[[#This Row],[ton CO2 pr. MWh]]*277.77777 -> 94.43999736 | T4: Affald, bionedbrydeligt [CO2 ton/TJ] | U4: 107.64 | V4: =Table5[[#This Row],[TJ/MWh]]*0.0036 -> 0.387504
A5: Procesvarme | D5: Tørring | E5: Vejtransport (offentlig vej) | F5: Rumkøling | G5: Pumpning | J5: Affald, ikke bionedbrydeligt | L5: Midjylland | M5: B - Råstofindvinding | N5: 2 | P5: Benzin og LVN | Q5: 0.2628 | R5: =Tabel2[[#This Row],[ton CO2 pr. MWh]]*277.77777 -> 72.99999796 | T5: Affald, ikke bionedbrydeligt [CO2 ton/TJ] | U5: 94.44 | V5: =Table5[[#This Row],[TJ/MWh]]*0.0036 -> 0.339984
A6: Transport | D6: Inddampning | G6: Køl/frys (ekskl. rumkøling) | J6: Benzin og LVN | L6: Syddanmark | M6: C - Fremstillingsvirksomhed | N6: 3 | P6: Biodiesel | Q6: 0.27972 | R6: =Tabel2[[#This Row],[ton CO2 pr. MWh]]*277.77777 -> 77.69999782 | T6: Benzin og LVN [CO2 ton/TJ] | U6: 73 | V6: =Table5[[#This Row],[TJ/MWh]]*0.0036 -> 0.2628
A7: Rumvarme | D7: Destillation | G7: Rumventilation | J7: Biodiesel | L7: Sjælland | M7: D - El-, gas- og fjernvarmeforsyning | N7: 4 | P7: Bioethanol | Q7: 0.2592 | R7: =Tabel2[[#This Row],[ton CO2 pr. MWh]]*277.77777 -> 71.99999798 | T7: Biodiesel [CO2 ton/TJ] {1} | U7: 77.7 | V7: =Table5[[#This Row],[TJ/MWh]]*0.0036 -> 0.27972
A8: Sekundær energi | D8: Brænding/sintring | G8: Blæsere | J8: Bioethanol | L8: Hovedstaden | M8: E - Vandforsyning; kloakvæsen, affaldshåndtering og rensning af jord og grundvand | N8: 5 | P8: Biogas | Q8: 0.29484 | R8: =Tabel2[[#This Row],[ton CO2 pr. MWh]]*277.77777 -> 81.89999771 | T8: Bioethanol [CO2 ton/TJ] | U8: 72 | V8: =Table5[[#This Row],[TJ/MWh]]*0.0036 -> 0.2592
D9: Smeltning/støbning | G9: Trykluft | J9: Biogas | M9: F - Bygge- og anlægsvirksomhed | N9: >5 | P9: Bionaturgas | Q9: 0.19764 | R9: =Tabel2[[#This Row],[ton CO2 pr. MWh]]*277.77777 -> 54.89999846 | T9: Biogas [CO2 ton/TJ] | U9: 81.9 | V9: =Table5[[#This Row],[TJ/MWh]]*0.0036 -> 0.29484
D10: Anden procesvarme* | G10: Hydraulik | J10: Bionaturgas | M10: G - Engroshandel og detailhandel, reparation af motorkøretøjer og motorcykler | P10: Bioolie | Q10: 0.25488 | R10: =Tabel2[[#This Row],[ton CO2 pr. MWh]]*277.77777 -> 70.79999802 | T10: Bionaturgas [CO2 ton/TJ] | U10: 54.9 | V10: =Table5[[#This Row],[TJ/MWh]]*0.0036 -> 0.19764
G11: Øvrige elmotorer | J11: Bioolie | M11: H - Transport og godshåndtering | P11: Elektricitet (forbrug) | Q11: 0.0361 | R11: =Tabel2[[#This Row],[ton CO2 pr. MWh]]*1000 -> 36.1 | T11: Bioolie [CO2 ton/TJ] | U11: 70.8 | V11: =Table5[[#This Row],[TJ/MWh]]*0.0036 -> 0.25488
G12: It og anden elektronik | J12: Elektricitet (forbrug) | M12: I - Overnatningsfaciliteter og restaurationsvirksomhed | P12: Elektricitet (produktion) | Q12: 0.0361 | R12: =Tabel2[[#This Row],[ton CO2 pr. MWh]]*1000 -> 36.1 | T12: Fuelolie og Spildolie [CO2 ton/TJ] | U12: 78.42 | V12: =Table5[[#This Row],[TJ/MWh]]*0.0036 -> 0.282312
G13: Anden elanvendelse* | J13: Elektricitet (produktion) | M13: J - Information og kommunikation - 580000 - 639900 | P13: Fjernvarme (forbrug) | Q13: =54.16/1000 -> 0.05416 | R13: =Tabel2[[#This Row],[ton CO2 pr. MWh]]*1000 -> 54.16 | T13: Gas & Dieselolie [CO2 ton/TJ] | U13: 74.1 | V13: =Table5[[#This Row],[TJ/MWh]]*0.0036 -> 0.26676
J14: Fjernvarme (forbrug) | M14: K - Pengeinstitut- og finansvirksomhed, forsikring - 640000 - 663000 | P14: Fjernvarme (produktion) | Q14: =43.3/1000 -> 0.0433 | R14: =Tabel2[[#This Row],[ton CO2 pr. MWh]]*1000 -> 43.3 | T14: Halm [CO2 ton/TJ] | U14: 100 | V14: =Table5[[#This Row],[TJ/MWh]]*0.0036 -> 0.36
J15: Fjernvarme (produktion) | M15: L - Fast ejendom | P15: Fuelolie og Spildolie | Q15: 0.2823 | R15: =Tabel2[[#This Row],[ton CO2 pr. MWh]]*277.77777 -> 78.41666447 | T15: JP1 og JP4 [CO2 ton/TJ] | U15: 72 | V15: =Table5[[#This Row],[TJ/MWh]]*0.0036 -> 0.2592
J16: Fuelolie og Spildolie | M16: M - Liberale, videnskabelige og tekniske tjenesteydelser - 690000 - 750000 | P16: Gas & Dieselolie | Q16: 0.26676 | R16: =Tabel2[[#This Row],[ton CO2 pr. MWh]]*277.77777 -> 74.09999793 | T16: Kul & Koks [CO2 ton/TJ] | U16: 94.41 | V16: =Table5[[#This Row],[TJ/MWh]]*0.0036 -> 0.339876
A17: Energityper | C17: Undertyper | J17: Gas & Dieselolie | M17: N - Administrative tjenesteydelser og hjælpetjenester - 750000 - 829900 | P17: Halm | Q17: 0.36 | R17: =Tabel2[[#This Row],[ton CO2 pr. MWh]]*277.77777 -> 99.9999972 | T17: LPG [CO2 ton/TJ] | U17: 64.8 | V17: =Table5[[#This Row],[TJ/MWh]]*0.0036 -> 0.23328
A18: Energitype | C18: OLIEPRODUKTER | D18: GAS | E18: KUL-KOKS | F18: AFFALD | G18: VEDVARENDE ENERGI | H18: KONVERTEREDE ENERGIARTER | J18: Halm | M18: O - Offentlig forvaltning og forsvar; socialsikring | P18: JP1 og JP4 | Q18: 0.2592 | R18: =Tabel2[[#This Row],[ton CO2 pr. MWh]]*277.77777 -> 71.99999798 | T18: Naturgas [CO2 ton/TJ] | U18: 56.71 | V18: =Table5[[#This Row],[TJ/MWh]]*0.0036 -> 0.204156
A19: Olieprodukter | C19: LPG | D19: Lednings-gas | E19: Kul og koks | F19: Affald, ikke-bionedbrydeligt | G19: Affald, bionedbrydeligt | H19: El i alt | J19: JP1 og JP4 | M19: P - Undervisning | P19: Kul & Koks | Q19: 0.339876 | R19: =Tabel2[[#This Row],[ton CO2 pr. MWh]]*277.77777 -> 94.40999736 | T19: Petrokoks [CO2 ton/TJ] | U19: 93 | V19: =Table5[[#This Row],[TJ/MWh]]*0.0036 -> 0.3348
A20: Gas | C20: Motor-benzin | G20: Halm | H20: heraf el til VP | J20: Kul & Koks | M20: Q - Sundhedsvæsen og sociale foranstaltninger | P20: Ledningsgas | Q20: =34.27*0.0036 -> 0.123372 | R20: =Tabel2[[#This Row],[ton CO2 pr. MWh]]*277.77777 -> 34.26999904 | T20: Petroleum [CO2 ton/TJ] | U20: 71.9 | V20: =Table5[[#This Row],[TJ/MWh]]*0.0036 -> 0.25884
A21: Kul Koks | C21: Fyrings-olie | G21: Skovflis | H21: Fjern-varme | J21: Ledningsgas | M21: R - Kultur, forlystelser og sport - 900000 - 932990 | P21: LPG | Q21: 0.23328 | R21: =Tabel2[[#This Row],[ton CO2 pr. MWh]]*277.77777 -> 64.79999819 | T21: Raffinaderigas [CO2 ton/TJ] | U21: 56.67 | V21: =Table5[[#This Row],[TJ/MWh]]*0.0036 -> 0.204012
A22: Affald | C22: Diesel | G22: Træpiller | J22: LPG | M22: S - Andre serviceydelser | P22: Naturgas | Q22: 0.204156 | R22: =Tabel2[[#This Row],[ton CO2 pr. MWh]]*277.77777 -> 56.70999841 | T22: Træ Øvrig [CO2 ton/TJ] | U22: 103.4 | V22: =Table5[[#This Row],[TJ/MWh]]*0.0036 -> 0.37224
A23: Vedvarende energi | C23: Fuelolie | G23: Træaffald og brænde | J23: Naturgas | M23: T - Private husholdninger med ansat medhjælp; husholdnin-gers produktion af varer og tjenesteydelser til eget brug, i.a.n. | P23: Petrokoks | Q23: 0.3348 | R23: =Tabel2[[#This Row],[ton CO2 pr. MWh]]*277.77777 -> 92.9999974 | T23: Træflis [CO2 ton/TJ] | U23: 103.4 | V23: =Table5[[#This Row],[TJ/MWh]]*0.0036 -> 0.37224
A24: Konverterede energiarter | C24: Petro-koks | G24: Biogas | J24: Petrokoks | M24: U - Ekstraterritoriale organisationer og organer | P24: Petroleum | Q24: 0.25884 | R24: =Tabel2[[#This Row],[ton CO2 pr. MWh]]*277.77777 -> 71.89999799 | T24: Træpiller [CO2 ton/TJ] | U24: 97.4 | V24: =Table5[[#This Row],[TJ/MWh]]*0.0036 -> 0.35064
G25: Bioolie | J25: Petroleum | P25: Raffinaderigas | Q25: 0.204012 | R25: =Tabel2[[#This Row],[ton CO2 pr. MWh]]*277.77777 -> 56.66999841 | T25: Elektricitet | U25: =36.1/3.6 -> 10.02777778 | V25: =Table5[[#This Row],[TJ/MWh]]*0.0036 -> 0.0361
G26: Varme-pumper - intern ov | J26: Raffinaderigas | P26: Træ Øvrig | Q26: 0.37224 | R26: =Tabel2[[#This Row],[ton CO2 pr. MWh]]*277.77777 -> 103.3999971
G27: Varme-pumper omg. Varme | J27: Træ Øvrig | P27: Træflis | Q27: 0.37224 | R27: =Tabel2[[#This Row],[ton CO2 pr. MWh]]*277.77777 -> 103.3999971
G28: Solvarme | J28: Træflis | P28: Træpiller | Q28: 0.35064 | R28: =Tabel2[[#This Row],[ton CO2 pr. MWh]]*277.77777 -> 97.39999727
J29: Træpiller
